bitfinex-derivatives/quotes_SOLF0:USTF0_20260312
["timestamp","ask_amount","ask_price","bid_price","bid_amount"]
[1773340020516,3.14092521,86.229,86.184,3.84389218]
[1773340021112,3.14092521,86.243,86.184,3.84389218]
[1773340022220,10.435,86.232,86.193,10.44]
[1773340022416,10.435,86.232,86.194,3.84389218]
[1773340022618,3.14092521,86.243,86.194,3.84389218]
[1773340023212,10.435,86.234,86.194,3.84389218]
[1773340023413,3.14092521,86.243,86.194,3.84389218]
[1773340024414,10.435,86.23,86.194,3.84389218]
[1773340024720,3.14092521,86.243,86.194,3.84389218]
[1773340025818,10.436,86.223,86.18,24.89089288]
[1773340026021,3.1522768,86.222,86.178,3.84389218]
[1773340028023,10.437,86.218,86.179,10.441]
[1773340029119,3.17379208,86.212,86.172,14.44989288]
[1773340029421,3.17379208,86.212,86.163,18.29378506]
[1773340029923,10.437,86.214,86.172,3.84389218]
[1773340030618,3.17594725,86.22,86.172,3.84389218]
[1773340031723,3.44541301,86.21,86.172,3.84389218]
[1773340031923,3.44541301,86.21,86.173,3.84389218]
[1773340032819,10.438,86.209,86.173,3.84389218]
[1773340033215,6.61506212,86.2,86.163,14.44989288]
[1773340033421,3.44541301,86.2,86.16,3.84389218]
[1773340033620,3.44541301,86.2,86.162,18.29378506]
[1773340034020,3.44541301,86.2,86.163,3.84389218]
[1773340034324,3.44541301,86.2,86.167,3.84389218]
[1773340037019,3.44541301,86.19,86.153,3.84389218]
[1773340037418,3.44541301,86.18,86.146,10.445]
[1773340037626,3.44541301,86.18,86.146,24.89489288]
[1773340037920,3.44541301,86.18,86.147,3.84389218]
[1773340038120,3.44541301,86.19,86.147,3.84389218]
[1773340038420,3.44541301,86.19,86.156,3.84389218]
[1773340040725,3.44541301,86.19,86.129,21.61517456]
[1773340040726,3.44541301,86.18,86.139,14.44989288]
[1773340040927,3.44541301,86.18,86.138,18.22455164]
[1773340041129,3.44541301,86.18,86.139,3.77465876]
[1773340041531,3.44541301,86.18,86.144,3.77465876]
[1773340042430,3.44541301,86.18,86.147,3.77465876]
[1773340042930,10.44,86.189,86.147,3.77465876]
[1773340043930,10.44,86.189,86.149,10.445]
[1773340044124,3.44541301,86.18,86.15,3.77465876]
[1773340044324,3.44541301,86.19,86.15,3.77465876]
[1773340046034,3.44541301,86.19,86.152,10.445]
[1773340046234,3.44541301,86.18,86.15,3.77465876]
[1773340046530,3.44541301,86.17,86.142,10.446]
[1773340046735,3.44541301,86.17,86.143,3.77465876]
[1773340047235,3.44541301,86.18,86.144,14.21965876]
[1773340047529,3.44541301,86.18,86.145,3.77465876]
[1773340047730,3.44541301,86.19,86.145,3.77465876]
[1773340048335,3.44541301,86.2,86.163,3.77465876]
[1773340048835,3.143344,86.217,86.179,10.441]
[1773340049230,3.44541301,86.22,86.179,10.441]
[1773340049837,10.436,86.219,86.179,10.441]
[1773340050539,3.44541301,86.22,86.182,3.77465876]
[1773340050735,10.436,86.226,86.182,3.77465876]
[1773340050940,3.44541301,86.23,86.182,3.77465876]
[1773340051135,3.44541301,86.23,86.188,10.44]
[1773340051442,3.44541301,86.23,86.159,36.54]
[1773340051443,6.59632281,86.22,86.161,3.77465876]
[1773340051634,3.44541301,86.21,86.161,3.77465876]
[1773340052342,3.44541301,86.21,86.166,3.77465876]
[1773340052739,3.44541301,86.2,86.166,3.77465876]
[1773340053637,3.44541301,86.21,86.166,3.77465876]
[1773340055941,3.44541301,86.21,86.174,10.442]
[1773340056139,3.44541301,86.2,86.166,3.77465876]
[1773340056739,3.44541301,86.2,86.159,36.54]
[1773340056740,3.44541301,86.21,86.167,3.77465876]
[1773340057840,3.44541301,86.21,86.177,14.21565876]
[1773340058039,3.44541301,86.21,86.178,3.77465876]
[1773340058642,6.59632281,86.22,86.179,10.441]
[1773340059540,3.44541301,86.21,86.179,10.441]
[1773340059741,3.44541301,86.21,86.18,3.77465876]
[1773340060443,3.44541301,86.21,86.171,14.21665876]
[1773340061846,3.44541301,86.21,86.174,3.77465876]
[1773340062744,3.44541301,86.18,86.145,3.74800622]
[1773340063847,3.44541301,86.18,86.152,10.445]
[1773340066556,10.44,86.189,86.152,10.445]
[1773340069763,3.44541301,86.17,86.137,10.446]
[1773340069961,3.11511055,86.179,86.131,3.74800622]
[1773340070161,3.11511055,86.179,86.132,3.74800622]
[1773340070860,3.11511055,86.179,86.145,10.445]
[1773340073662,3.11511055,86.179,86.139,3.69500268]
[1773340073865,3.44541301,86.16,86.122,3.69500268]
[1773340074363,10.442,86.176,86.136,3.69500268]
[1773340074656,3.44541301,86.18,86.136,3.69500268]
[1773340075657,3.44541301,86.17,86.136,3.69500268]
[1773340075854,10.443,86.169,86.13,10.447]
[1773340076060,3.44541301,86.16,86.121,3.69500268]
[1773340076455,3.44541301,86.17,86.135,3.69500268]
[1773340077162,3.44541301,86.17,86.121,3.69500268]
[1773340077465,3.44541301,86.16,86.121,3.69500268]
[1773340077766,3.09426563,86.169,86.121,3.69500268]
[1773340078973,10.443,86.168,86.127,14.14300268]
[1773340079770,10.443,86.168,86.128,3.69500268]
[1773340080166,3.09426563,86.169,86.131,10.447]
[1773340080362,3.44541301,86.18,86.132,3.69500268]
[1773340080568,3.44541301,86.19,86.132,3.69500268]
[1773340081070,3.44541301,86.19,86.153,10.444]
[1773340081267,3.44541301,86.19,86.147,3.69500268]
[1773340081470,3.44541301,86.18,86.147,3.69500268]
[1773340082070,3.44541301,86.17,86.133,3.69500268]
[1773340083964,3.44541301,86.17,86.135,10.447]
[1773340085167,3.44541301,86.16,86.124,10.448]
[1773340085573,3.44925511,86.16,86.124,10.448]
[1773340086172,3.44925511,86.16,86.13,10.447]
[1773340086371,3.44925511,86.18,86.131,3.69500268]
[1773340086571,3.1371887,86.187,86.131,3.69500268]
[1773340086572,3.44925511,86.17,86.131,3.69500268]
[1773340087073,3.44925511,86.17,86.084,49.63007941]
[1773340087074,3.44925511,86.16,86.118,3.69500268]
[1773340087474,3.44925511,86.15,86.118,3.69500268]
[1773340088278,6.6017122,86.16,86.118,3.69500268]
[1773340088673,3.44925511,86.17,86.118,3.69500268]
[1773340088872,10.443,86.169,86.125,10.448]
[1773340089067,13.59545709,86.169,86.125,10.448]
[1773340090272,13.59547501,86.162,86.118,3.69500268]
[1773340090673,3.15247501,86.158,86.118,3.69500268]
[1773340091475,3.2161212,86.169,86.118,3.69500268]
[1773340091876,3.2161212,86.165,86.119,10.449]
[1773340093178,3.2161212,86.165,86.126,10.448]
[1773340093881,3.44925511,86.16,86.119,10.449]
[1773340094376,3.44925511,86.16,86.119,14.14400268]
[1773340095879,3.21515083,86.159,86.119,3.69500268]
[1773340096979,3.44925511,86.16,86.119,3.69500268]
[1773340096980,3.44925511,86.15,86.119,3.69500268]
[1773340097179,3.21515083,86.158,86.119,3.69500268]
[1773340097977,10.445,86.152,86.119,3.69500268]
[1773340098179,3.44925511,86.15,86.106,3.69500268]
[1773340098378,3.21542248,86.149,86.106,3.69500268]
[1773340098884,6.66467759,86.14,86.092,3.69500268]
[1773340099180,6.66490309,86.15,86.101,3.69500268]
[1773340099385,13.89125511,86.17,86.124,3.69500268]
[1773340099585,3.21564798,86.169,86.124,3.69500268]
[1773340099789,3.44925511,86.16,86.124,3.69500268]
[1773340100178,10.444,86.154,86.124,3.69500268]
[1773340100582,3.44925511,86.16,86.124,3.69500268]
[1773340101384,6.6283099,86.16,86.124,3.69500268]
[1773340101590,3.17905479,86.159,86.111,3.9609453]
[1773340101984,3.17905479,86.149,86.111,3.9609453]
[1773340102986,10.445,86.145,86.111,3.9609453]
[1773340103591,3.44925511,86.14,86.098,10.451]
[1773340103891,3.44925511,86.14,86.098,14.4119453]
[1773340104393,3.44925511,86.14,86.1,14.4119453]
[1773340105490,3.44925511,86.14,86.102,14.4119453]
[1773340105686,3.20129456,86.144,86.103,3.9609453]
[1773340105892,3.44925511,86.15,86.103,3.9609453]
[1773340106093,6.65073641,86.15,86.111,14.4109453]
[1773340106295,3.2014813,86.149,86.111,14.4109453]
[1773340107491,13.61430549,86.148,86.111,14.4109453]
[1773340107794,3.16930549,86.147,86.111,3.9609453]
[1773340108894,10.445,86.146,86.111,3.9609453]
[1773340109191,3.17006554,86.139,86.098,3.9609453]
[1773340109397,3.44925511,86.13,86.098,3.9609453]
[1773340109597,3.44925511,86.12,86.086,3.9609453]
[1773340110297,10.448,86.127,86.086,3.9609453]
[1773340110893,10.448,86.127,86.087,3.9609453]
[1773340111601,3.15705432,86.119,86.073,3.9609453]
[1773340111997,3.44925511,86.11,86.073,3.9609453]
[1773340112297,3.15705432,86.119,86.073,3.9609453]
[1773340112699,10.449,86.115,86.073,3.9609453]
[1773340112899,3.15705432,86.119,86.073,3.9609453]
[1773340113491,3.44925511,86.13,86.082,3.9609453]
[1773340114902,3.44925511,86.13,86.085,14.4139453]
[1773340115204,3.44925511,86.13,86.086,3.9609453]
[1773340115401,10.447,86.129,86.086,3.9609453]
[1773340118902,3.44925511,86.13,86.088,3.9609453]
[1773340119312,3.14741011,86.144,86.102,3.9609453]
[1773340119507,3.14741011,86.169,86.111,3.9609453]
[1773340119903,13.59041011,86.162,86.113,3.9609453]
[1773340120707,3.14741011,86.162,86.122,14.4089453]
[1773340120905,3.14741011,86.162,86.122,3.9609453]
[1773340121510,3.44925511,86.16,86.122,3.9609453]
[1773340122611,3.44925511,86.17,86.124,3.74395116]
[1773340123010,3.14893558,86.169,86.124,3.74395116]
[1773340123711,3.14635396,86.167,86.124,3.74395116]
[1773340124411,3.44925511,86.16,86.124,3.74395116]
[1773340126200,3.1788928,86.158,86.117,10.449]
[1773340126401,3.1788928,86.158,86.117,14.19295116]
[1773340127007,3.1788928,86.158,86.1,3.44925511]
[1773340127008,10.444,86.157,86.119,3.74395116]
[1773340127313,3.18245437,86.156,86.119,3.74395116]
[1773340128913,10.444,86.155,86.119,3.74395116]
[1773340129813,3.18245437,86.156,86.119,3.74395116]
[1773340131209,3.18245437,86.156,86.12,10.448]
[1773340131411,3.44925511,86.16,86.121,3.82785135]
[1773340131714,3.18569633,86.168,86.121,3.82785135]
[1773340132411,21.10016407,86.229,86.105,14.44989288]
[1773340132412,3.18569633,86.186,86.141,3.82785135]
[1773340132610,3.18569633,86.199,86.141,3.82785135]
[1773340133214,3.18569633,86.199,86.151,3.82785135]
[1773340134213,3.44925511,86.19,86.151,3.82785135]
[1773340134416,6.64313412,86.19,86.151,3.82785135]
[1773340134816,3.44925511,86.18,86.131,3.82785135]
[1773340135018,3.19387901,86.179,86.131,3.82785135]
[1773340138522,3.44925511,86.19,86.131,3.82785135]
[1773340138823,3.29992438,86.189,86.131,3.82785135]
[1773340140525,176.0,86.249,86.151,3.82785135]
[1773340140526,3.30588538,86.209,86.151,3.82785135]
[1773340140726,3.30588538,86.209,86.161,3.82785135]
[1773340140930,3.30588538,86.199,86.161,3.82785135]
[1773340143525,3.30588538,86.199,86.15,3.44925511]
[1773340143825,3.30194702,86.189,86.148,3.82785135]
[1773340147528,3.21212166,86.179,86.133,3.82785135]
[1773340149932,3.19505583,86.189,86.133,3.82785135]
[1773340151233,3.19505583,86.189,86.151,3.82785135]
[1773340152524,3.12791872,86.199,86.151,3.82785135]
[1773340155936,3.03240116,86.189,86.151,3.82785135]
[1773340156231,3.03240116,86.179,86.131,3.82785135]
[1773340156436,3.03240116,86.169,86.131,3.82785135]
[1773340166235,16.88783559,86.18,86.133,3.97955546]
[1773340166445,2.99990215,86.179,86.133,3.97955546]
[1773340166640,3.44693344,86.17,86.133,3.97955546]
[1773340166842,13.44290215,86.169,86.133,3.97955546]
[1773340167543,2.99769555,86.155,86.119,14.44989288]
[1773340167743,2.99769555,86.155,86.112,3.97955546]
[1773340168240,2.99769555,86.155,86.115,3.97955546]
[1773340168442,2.99769555,86.168,86.121,3.97955546]
[1773340169044,2.99769555,86.167,86.123,3.97955546]
[1773340169538,2.99769555,86.167,86.125,14.42755546]
[1773340170644,2.99769555,86.167,86.126,3.97955546]
[1773340171148,10.443,86.164,86.126,3.97955546]
[1773340172047,3.44693344,86.17,86.126,3.97955546]
[1773340172652,10.442,86.171,86.126,3.97955546]
[1773340172848,10.442,86.171,86.127,10.448]
[1773340173145,10.442,86.171,86.128,3.97955546]
[1773340174747,10.443,86.167,86.128,3.97955546]
[1773340174949,3.02332511,86.166,86.128,3.97955546]
[1773340175348,3.06859413,86.159,86.12,10.448]
[1773340175843,3.06859413,86.159,86.115,3.97955546]
[1773340176042,10.445,86.152,86.115,3.97955546]
[1773340176242,3.06859413,86.149,86.115,3.97955546]
[1773340176947,3.06859413,86.147,86.103,14.44989288]
[1773340177154,3.06859413,86.147,86.103,3.97955546]
[1773340179049,3.03665663,86.139,86.103,3.97955546]
[1773340179254,3.44693344,86.13,86.084,3.97955546]
[1773340179854,3.05431057,86.128,86.084,3.97955546]
[1773340181153,10.448,86.127,86.085,3.97955546]
[1773340181955,3.05431057,86.128,86.088,3.97955546]
[1773340182551,3.44693344,86.14,86.097,3.9749896]
[1773340182957,10.446,86.139,86.097,3.9749896]
[1773340183154,10.446,86.139,86.063,21.61517456]
[1773340183155,3.05003007,86.157,86.101,3.9749896]
[1773340183354,3.05003007,86.157,86.111,3.9749896]
[1773340187149,6.45913695,86.15,86.111,3.9749896]
[1773340187757,2.99203737,86.149,86.111,3.9749896]
[1773340187958,13.43703737,86.149,86.111,3.9749896]
[1773340188258,2.99203737,86.148,86.111,3.9749896]
[1773340188751,10.445,86.146,86.111,3.9749896]
[1773340188957,10.445,86.146,86.101,3.9749896]
[1773340189157,2.99203737,86.139,86.091,3.9749896]
[1773340189861,10.446,86.137,86.091,3.9749896]
[1773340191062,13.43845965,86.137,86.094,10.452]
[1773340191663,13.43845965,86.137,86.094,14.33357351]
[1773340191965,13.43845965,86.137,86.097,3.88157351]
[1773340192463,2.99245965,86.137,86.1,3.88157351]
[1773340192761,10.446,86.143,86.1,3.88157351]
[1773340193458,16.88836216,86.15,86.108,10.45]
[1773340193664,16.88836216,86.15,86.109,3.88157351]
[1773340194254,3.01706819,86.149,86.109,3.88157351]
[1773340195366,6.46762073,86.16,86.109,3.88157351]
[1773340195767,6.46762073,86.16,86.112,3.88157351]
[1773340196070,3.02068729,86.159,86.112,3.88157351]
[1773340197062,3.02068729,86.177,86.115,3.88157351]
[1773340197267,3.02068729,86.169,86.115,3.88157351]
[1773340197863,3.02068729,86.169,86.121,3.88157351]
[1773340198059,10.443,86.167,86.124,3.88157351]
[1773340198472,6.4649163,86.18,86.131,3.88157351]
[1773340198661,3.01798286,86.179,86.131,3.88157351]
[1773340199267,3.01798286,86.169,86.118,3.88157351]
[1773340199968,2.9899318,86.159,86.106,3.88157351]
[1773340200171,3.44693344,86.15,86.106,3.88157351]
[1773340200871,3.44693344,86.15,86.111,3.88157351]
[1773340201167,2.9899318,86.159,86.111,3.88157351]
[1773340201771,3.02663652,86.173,86.121,3.88157351]
[1773340201975,3.02663652,86.187,86.131,3.88157351]
[1773340202171,3.02663652,86.187,86.15,3.44693344]
[1773340202369,10.439,86.198,86.159,3.88157351]
[1773340202780,3.02663652,86.189,86.142,3.88157351]
[1773340203075,3.02663652,86.179,86.132,3.88157351]
[1773340203870,3.02663652,86.179,86.133,3.88157351]
[1773340204074,6.45977585,86.17,86.119,3.88157351]
[1773340204473,3.44693344,86.17,86.121,3.88157351]
[1773340205670,3.44693344,86.17,86.127,10.448]
[1773340205878,3.44693344,86.17,86.128,3.88157351]
[1773340206074,3.44693344,86.18,86.13,3.44693344]
[1773340206377,6.53196999,86.18,86.131,3.88157351]
[1773340207183,10.441,86.179,86.131,3.88157351]
[1773340207376,3.08894608,86.169,86.12,3.44693344]
[1773340207570,3.08894608,86.169,86.12,7.33065407]
[1773340207782,3.08894608,86.159,86.107,3.88157351]
[1773340207977,3.08894608,86.147,86.107,3.88157351]
[1773340208176,3.44908056,86.15,86.107,3.88157351]
[1773340208476,10.444,86.155,86.111,3.88157351]
[1773340208778,3.44908056,86.16,86.111,3.88157351]
[1773340209381,10.444,86.159,86.115,3.88157351]
[1773340209771,3.44908056,86.16,86.115,3.88157351]
[1773340209977,10.443,86.167,86.117,3.88157351]
[1773340210476,3.0751168,86.174,86.131,3.88157351]
[1773340211882,3.0751168,86.174,86.132,10.447]
[1773340212579,3.0751168,86.174,86.133,3.88157351]
[1773340212780,10.441,86.183,86.136,3.88157351]
[1773340213177,3.00850714,86.168,86.123,3.88157351]
[1773340213875,3.44908056,86.17,86.114,14.44989288]
[1773340213876,3.00718279,86.164,86.114,14.44989288]
[1773340214079,3.00718279,86.159,86.107,3.88157351]
[1773340214481,3.00718279,86.159,86.111,3.88157351]
[1773340214677,20.879,86.196,86.123,3.88157351]
[1773340214678,13.89108056,86.17,86.123,3.88157351]
[1773340214874,3.00718279,86.187,86.131,3.88157351]
[1773340215078,3.00718279,86.187,86.141,3.88157351]
[1773340215886,3.00718279,86.187,86.142,3.88157351]
[1773340216689,10.44,86.186,86.142,3.88157351]
[1773340216888,3.01176913,86.179,86.131,3.88157351]
[1773340217189,36.54,86.211,86.118,3.88157351]
[1773340217190,10.444,86.158,86.118,3.88157351]
[1773340217777,10.443,86.166,86.12,3.88157351]
[1773340218176,20.879,86.198,86.12,3.88157351]
[1773340218177,3.44908056,86.18,86.121,3.88157351]
[1773340218484,3.44908056,86.18,86.138,3.88157351]
[1773340218681,3.04582677,86.183,86.138,3.88157351]
[1773340218883,3.04582677,86.183,86.139,14.32757351]
[1773340219084,3.44908056,86.18,86.139,14.32757351]
[1773340220080,3.03632038,86.159,86.117,14.44989288]
[1773340220283,3.03632038,86.159,86.111,3.88157351]
[1773340220584,10.444,86.158,86.115,3.83311592]
[1773340221283,13.89408056,86.15,86.115,3.83311592]
[1773340221687,3.03632038,86.159,86.115,3.83311592]
[1773340222887,10.444,86.157,86.115,14.28211592]
[1773340223490,10.444,86.157,86.12,10.448]
[1773340224087,3.03632038,86.159,86.12,10.448]
[1773340224281,3.44908056,86.17,86.124,3.83311592]
[1773340224486,10.441,86.179,86.131,3.83311592]
[1773340225284,2.98504253,86.189,86.09,20.904]
[1773340225285,10.441,86.186,86.141,3.83311592]
[1773340225893,10.441,86.18,86.144,10.446]
[1773340226195,10.441,86.18,86.141,3.83311592]
[1773340226597,10.442,86.174,86.137,10.446]
[1773340227895,2.93725308,86.169,86.111,3.83311592]
[1773340228989,10.444,86.159,86.121,10.448]
[1773340229193,2.93725308,86.169,86.121,10.448]
[1773340229997,2.93725308,86.169,86.121,14.28111592]
[1773340230393,3.44908056,86.19,86.14,3.44908056]
[1773340230694,2.96692813,86.196,86.141,3.83311592]
[1773340231200,2.96692813,86.189,86.141,3.83311592]
[1773340231401,3.44908056,86.18,86.13,3.44908056]
[1773340231602,2.9668362,86.168,86.119,14.44989288]
[1773340231802,3.44908056,86.16,86.115,14.44989288]
[1773340232304,3.44908056,86.16,86.116,3.83311592]
[1773340232496,2.9668362,86.168,86.116,3.83311592]
[1773340232995,2.9668362,86.168,86.125,10.448]
[1773340234408,10.444,86.161,86.12,3.44908056]
[1773340234604,10.444,86.161,86.119,3.83311592]
[1773340234805,2.9668362,86.168,86.119,3.83311592]
[1773340236005,10.443,86.166,86.124,10.448]
[1773340236315,3.44908056,86.18,86.131,3.83311592]
[1773340237713,10.442,86.174,86.135,3.83311592]
[1773340238513,2.951114,86.179,86.135,3.83311592]
[1773340239903,10.442,86.177,86.136,10.446]
[1773340240906,2.951114,86.179,86.135,3.83311592]
[1773340242404,10.442,86.172,86.135,3.83311592]
[1773340245810,10.443,86.166,86.123,14.44989288]
[1773340246015,10.443,86.166,86.124,4.00649658]
[1773340246517,10.443,86.166,86.128,4.00649658]
[1773340249224,13.44329734,86.166,86.128,4.00649658]
[1773340250518,10.443,86.166,86.131,3.79837932]
[1773340251117,10.443,86.166,86.112,21.61517456]
[1773340251118,3.00289347,86.208,86.161,3.79837932]
[1773340251422,3.00289347,86.208,86.17,3.44908056]
[1773340251817,3.00289347,86.208,86.15,14.44989288]
[1773340251818,36.54,86.228,86.171,3.79837932]
[1773340252016,2.97389733,86.238,86.108,162.562]
[1773340252017,3.44908056,86.23,86.191,3.79837932]
[1773340252224,3.44908056,86.21,86.17,3.79837932]
[1773340253314,10.438,86.209,86.17,3.79837932]
[1773340256723,3.44908056,86.19,86.155,3.79837932]
[1773340257021,3.44908056,86.2,86.155,3.79837932]
[1773340257418,13.88808056,86.2,86.155,14.24237932]
[1773340257621,13.88808056,86.2,86.156,3.79837932]
[1773340258818,3.44908056,86.2,86.16,3.79837932]
[1773340259022,3.44908056,86.21,86.161,3.79837932]
[1773340259926,13.88708056,86.21,86.166,10.443]
[1773340260123,3.44908056,86.2,86.161,3.79837932]
[1773340261118,3.44908056,86.18,86.145,3.79837932]
[1773340261327,3.44908056,86.16,86.12,14.44989288]
[1773340261529,6.70788545,86.17,86.117,3.79837932]
[1773340262933,3.44908056,86.16,86.124,10.448]
[1773340263233,3.44908056,86.16,86.124,14.24637932]
[1773340263533,10.443,86.167,86.124,14.24637932]
[1773340263722,10.443,86.167,86.125,3.79837932]
[1773340265030,10.443,86.167,86.126,10.448]
[1773340265227,3.44908056,86.19,86.131,3.79837932]
[1773340265931,3.04275753,86.189,86.131,3.79837932]
[1773340266934,10.441,86.181,86.136,3.79837932]
[1773340268030,10.441,86.181,86.138,3.79837932]
[1773340268432,10.442,86.175,86.138,3.79837932]
[1773340271638,3.44741778,86.18,86.138,3.79837932]
[1773340271831,3.04275753,86.189,86.138,3.79837932]
[1773340272032,3.44741778,86.16,86.124,3.79837932]
[1773340272944,3.44741778,86.15,86.113,46.989]
[1773340273340,3.44741778,86.15,86.114,3.79837932]
[1773340273639,13.89141778,86.16,86.114,3.79837932]
[1773340275044,13.89141778,86.16,86.117,3.79837932]
[1773340275642,3.44741778,86.16,86.117,3.79837932]
[1773340276845,3.44741778,86.16,86.125,10.448]
[1773340277235,3.44741778,86.16,86.125,14.24637932]
[1773340277440,3.44741778,86.16,86.126,3.79837932]
[1773340277637,10.443,86.167,86.126,3.79837932]
[1773340278853,10.443,86.167,86.127,10.448]
[1773340279353,2.97768399,86.159,86.114,3.79837932]
[1773340279855,3.44741778,86.17,86.119,3.79837932]
[1773340280252,3.44741778,86.18,86.135,3.9634397]
[1773340280448,3.44741778,86.18,86.113,36.54]
[1773340280449,3.44741778,86.19,86.141,3.9634397]
[1773340280656,2.97860381,86.199,86.141,3.9634397]
[1773340281053,10.439,86.196,86.152,10.445]
[1773340282246,10.439,86.196,86.153,3.9634397]
[1773340282451,2.97860381,86.199,86.156,3.9634397]
[1773340283845,10.439,86.196,86.156,3.9634397]
[1773340284850,3.44741778,86.19,86.156,3.9634397]
[1773340285055,10.44,86.188,86.156,3.9634397]
[1773340285358,2.97860381,86.199,86.156,3.9634397]
[1773340285760,3.09544565,86.196,86.146,3.9634397]
[1773340286264,3.44741778,86.19,86.146,3.9634397]
[1773340286963,3.44741778,86.19,86.148,14.4084397]
[1773340287160,3.44741778,86.19,86.149,3.9634397]
[1773340287661,3.44741778,86.19,86.151,3.9634397]
[1773340288867,3.44741778,86.19,86.152,10.445]
[1773340289161,3.44741778,86.19,86.152,14.4084397]
[1773340291469,10.44,86.189,86.152,3.9634397]
[1773340293272,3.44741778,86.19,86.152,3.9634397]
[1773340293772,3.44741778,86.18,86.152,3.9634397]
[1773340293968,6.53221866,86.19,86.152,3.9634397]
[1773340295273,6.53221866,86.19,86.154,10.444]
[1773340295573,3.44741778,86.19,86.155,3.9634397]
[1773340297075,3.44741778,86.19,86.159,10.444]
[1773340297373,3.44741778,86.19,86.155,3.9634397]
[1773340298871,13.88741778,86.19,86.155,3.9634397]
[1773340299075,3.44741778,86.19,86.155,3.9634397]
[1773340299272,6.48576869,86.2,86.155,3.9634397]
[1773340299478,3.03835091,86.199,86.155,3.9634397]
[1773340299776,3.44741778,86.19,86.155,3.9634397]
[1773340300875,3.44741778,86.19,86.156,10.444]
[1773340303280,3.44741778,86.19,86.157,3.67753524]
[1773340307979,3.44741778,86.17,86.137,3.67753524]
[1773340309074,10.443,86.169,86.125,3.67753524]
[1773340309271,3.44741778,86.16,86.125,3.67753524]
[1773340310081,10.443,86.169,86.127,3.67753524]
[1773340310876,3.44741778,86.17,86.131,3.88975991]
[1773340311477,3.44741778,86.19,86.142,3.88975991]
[1773340311681,2.98763182,86.189,86.142,3.88975991]
[1773340311983,3.44741778,86.18,86.142,3.88975991]
[1773340312978,3.44741778,86.18,86.144,3.88975991]
[1773340313680,10.441,86.186,86.147,14.33475991]
[1773340314080,13.4235145,86.184,86.147,3.88975991]
[1773340314281,3.44741778,86.18,86.147,3.88975991]
[1773340315986,10.441,86.179,86.147,3.88975991]
[1773340316980,36.54,86.21,86.123,36.54]
[1773340316981,2.95979792,86.169,86.123,50.96686912]
[1773340317181,3.44741778,86.16,86.123,36.54]
[1773340317783,10.443,86.163,86.123,50.87775991]
[1773340318576,10.443,86.163,86.124,3.88975991]
[1773340319688,10.442,86.171,86.126,3.88975991]
[1773340320987,10.441,86.179,86.137,3.88975991]
[1773340321576,10.441,86.186,86.144,3.88975991]
[1773340322380,3.44741778,86.19,86.147,3.88975991]
[1773340322580,2.82828591,86.205,86.161,3.88975991]
[1773340322784,6.27570369,86.22,86.171,3.88975991]
[1773340323186,2.82828591,86.219,86.171,3.88975991]
[1773340323490,2.82828591,86.239,86.191,3.88975991]
[1773340323886,2.82828591,86.239,86.193,3.88975991]
[1773340324085,3.44741778,86.21,86.181,14.42686912]
[1773340324386,3.44741778,86.2,86.166,3.88975991]
[1773340324786,3.44741778,86.2,86.163,14.42686912]
[1773340326391,3.44741778,86.2,86.162,14.42686912]
[1773340326588,3.44741778,86.2,86.154,3.88975991]
[1773340327694,3.44741778,86.18,86.145,14.42686912]
[1773340327890,3.44741778,86.17,86.142,3.88975991]
[1773340328291,2.64847459,86.18,86.142,3.88975991]
[1773340328292,6.09589237,86.18,86.142,3.88975991]
[1773340329092,10.44,86.187,86.145,3.88975991]
[1773340329290,10.44,86.187,86.146,3.88975991]
[1773340330491,3.44742154,86.19,86.146,3.88975991]
[1773340331488,3.44742154,86.18,86.146,3.88975991]
[1773340332498,2.64026508,86.188,86.146,3.88975991]
[1773340332794,3.44742154,86.18,86.149,10.445]
[1773340332999,2.64026508,86.199,86.16,7.33718145]
[1773340333292,2.64026508,86.209,86.161,3.88975991]
[1773340333891,3.44742154,86.2,86.155,3.88975991]
[1773340334296,6.08289659,86.2,86.155,3.88975991]
[1773340334891,10.439,86.197,86.155,3.88975991]
[1773340335696,2.63547505,86.2,86.157,3.88975991]
[1773340336090,2.63547505,86.2,86.162,10.443]
[1773340336296,6.08289659,86.2,86.157,3.88975991]
[1773340337701,2.6377153,86.214,86.167,3.88975991]
[1773340338109,2.6377153,86.209,86.167,3.88975991]
[1773340338403,2.6377153,86.207,86.167,3.88975991]
[1773340340803,3.44742154,86.19,86.157,36.54]
[1773340341207,2.63832342,86.199,86.157,36.54]
[1773340341409,10.44,86.189,86.157,36.54]
[1773340342211,2.64002514,86.188,86.157,36.54]
[1773340342410,3.44742154,86.19,86.145,14.42686912]
[1773340342411,13.08002514,86.187,86.145,14.42686912]